[Event "Early-Titled-Tuesday-Blitz-January-16-2024"]
[Site "Chess.com"]
[Date "2024.01.16"]
[Round "11"]
[White "KevinGeorgeMicheal"]
[Black "sansanathalia"]
[Result "0-1"]
[WhiteElo "2247"]
[BlackElo "2370"]
[TimeControl "180+1"]
[EndTime "10:09:44 PST"]
[Termination "sansanathalia won on time"]

1. e4 {[%clk 0:02:56]} 1... c5 {[%clk 0:02:56.6]} 2. Nf3 {[%clk 0:02:55.7]} 2...
d6 {[%clk 0:02:55.4]} 3. Nc3 {[%clk 0:02:53.8]} 3... Nf6 {[%clk 0:02:54.3]} 4.
d4 {[%clk 0:02:51.4]} 4... cxd4 {[%clk 0:02:51.6]} 5. Nxd4 {[%clk 0:02:47.6]}
5... a6 {[%clk 0:02:48.9]} 6. Bc4 {[%clk 0:02:41.8]} 6... e6 {[%clk 0:02:44]} 7.
O-O {[%clk 0:02:40.7]} 7... Be7 {[%clk 0:02:42.7]} 8. a4 {[%clk 0:02:33.3]} 8...
O-O {[%clk 0:02:39.8]} 9. Be3 {[%clk 0:02:32.5]} 9... Nc6 {[%clk 0:02:38.8]} 10.
f4 {[%clk 0:02:28.1]} 10... Qc7 {[%clk 0:02:33.7]} 11. Nxc6 {[%clk 0:02:23.5]}
11... bxc6 {[%clk 0:02:32]} 12. Qf3 {[%clk 0:02:16.5]} 12... Bb7 {[%clk
0:02:26.9]} 13. Rae1 {[%clk 0:02:12.9]} 13... d5 {[%clk 0:02:23.6]} 14. Bd3
{[%clk 0:02:10.2]} 14... c5 {[%clk 0:02:21.5]} 15. e5 {[%clk 0:02:05.5]} 15...
Nd7 {[%clk 0:02:16.4]} 16. Bxh7+ {[%clk 0:01:32.8]} 16... Kxh7 {[%clk
0:02:13.1]} 17. Qh5+ {[%clk 0:01:32.4]} 17... Kg8 {[%clk 0:02:12.1]} 18. Rf3
{[%clk 0:01:32.5]} 18... f6 {[%clk 0:01:12.9]} 19. Rh3 {[%clk 0:01:21.5]} 19...
d4 {[%clk 0:00:52.2]} 20. Qh7+ {[%clk 0:01:03.6]} 20... Kf7 {[%clk 0:00:49.9]}
21. f5 {[%clk 0:01:01.1]} 21... exf5 {[%clk 0:00:43.8]} 22. e6+ {[%clk 0:00:47]}
22... Ke8 {[%clk 0:00:39.8]} 23. exd7+ {[%clk 0:00:39]} 23... Qxd7 {[%clk
0:00:33.9]} 24. Bf2 {[%clk 0:00:33.9]} 24... Qc6 {[%clk 0:00:19.9]} 25. Qxg7
{[%clk 0:00:24.4]} 25... Rf7 {[%clk 0:00:19.6]} 26. Qg6 {[%clk 0:00:17]} 26...
dxc3 {[%clk 0:00:16]} 27. Rhe3 {[%clk 0:00:16.2]} 27... Kd7 {[%clk 0:00:12.4]}
28. Rd3+ {[%clk 0:00:14.8]} 28... Kc7 {[%clk 0:00:12.2]} 29. Rg3 {[%clk
0:00:12]} 29... Raf8 {[%clk 0:00:09.9]} 30. bxc3 {[%clk 0:00:10.7]} 30... Bd6
{[%clk 0:00:10]} 31. Rd3 {[%clk 0:00:09.3]} 31... Be5 {[%clk 0:00:08.7]} 32. c4
{[%clk 0:00:04.4]} 32... f4 {[%clk 0:00:07.6]} 33. Rf3 {[%clk 0:00:03.7]} 33...
Rd7 {[%clk 0:00:06.8]} 34. h4 {[%clk 0:00:02.8]} 34... Rdd8 {[%clk 0:00:06.4]}
35. Qg7+ {[%clk 0:00:01.7]} 35... Kb8 {[%clk 0:00:04.4]} 0-1

[Event "Early-Titled-Tuesday-Blitz-January-16-2024"]
[Site "Chess.com"]
[Date "2024.01.16"]
[Round "11"]
[White "Ezov"]
[Black "Massakru"]
[Result "0-1"]
[WhiteElo "2217"]
[BlackElo "2322"]
[TimeControl "180+1"]
[EndTime "10:09:47 PST"]
[Termination "Massakru won on time"]

1. d4 {[%clk 0:02:58.2]} 1... Nf6 {[%clk 0:02:59.8]} 2. Nc3 {[%clk 0:02:57.2]}
2... d5 {[%clk 0:02:59.4]} 3. Bf4 {[%clk 0:02:55.8]} 3... e6 {[%clk 0:02:58.8]}
4. Qd2 {[%clk 0:02:54.9]} 4... Bb4 {[%clk 0:02:57]} 5. f3 {[%clk 0:02:54]} 5...
O-O {[%clk 0:02:53.8]} 6. a3 {[%clk 0:02:52.4]} 6... Ba5 {[%clk 0:02:52.9]} 7.
O-O-O {[%clk 0:02:46.8]} 7... Nbd7 {[%clk 0:02:51.1]} 8. g4 {[%clk 0:02:41.4]}
8... c5 {[%clk 0:02:49.8]} 9. e3 {[%clk 0:02:39.3]} 9... cxd4 {[%clk 0:02:48.8]}
10. exd4 {[%clk 0:02:40.2]} 10... Bc7 {[%clk 0:02:20.7]} 11. Nge2 {[%clk
0:02:25.9]} 11... Nb6 {[%clk 0:02:18.6]} 12. Ng3 {[%clk 0:02:19.9]} 12... Bd7
{[%clk 0:02:10.2]} 13. g5 {[%clk 0:02:16.8]} 13... Ne8 {[%clk 0:02:10]} 14. Bd3
{[%clk 0:02:08.7]} 14... Nd6 {[%clk 0:02:07.6]} 15. Be5 {[%clk 0:01:42.9]} 15...
Ndc4 {[%clk 0:02:06.7]} 16. Qf4 {[%clk 0:01:37]} 16... Bxe5 {[%clk 0:02:00.9]}
17. dxe5 {[%clk 0:01:37.9]} 17... Rc8 {[%clk 0:01:54.9]} 18. Qh4 {[%clk
0:01:31.8]} 18... h6 {[%clk 0:01:53.4]} 19. f4 {[%clk 0:01:21.7]} 19... Nxa3
{[%clk 0:01:32.6]} 20. Nh5 {[%clk 0:01:14.4]} 20... d4 {[%clk 0:01:08]} 21. Nf6+
{[%clk 0:00:55.5]} 21... Kh8 {[%clk 0:00:45.7]} 22. Nce4 {[%clk 0:00:19.3]}
22... Nxc2 {[%clk 0:00:31.5]} 23. Bxc2 {[%clk 0:00:16.4]} 23... Ba4 {[%clk
0:00:31]} 24. Rd2 {[%clk 0:00:13.7]} 24... d3 {[%clk 0:00:27.7]} 25. gxh6 {[%clk
0:00:11.1]} 25... gxf6 {[%clk 0:00:27.1]} 26. Nxf6 {[%clk 0:00:03.3]} 26... Bxc2
{[%clk 0:00:19.3]} 27. Qg5 {[%clk 0:00:02.8]} 27... Rg8 {[%clk 0:00:10.1]} 28.
Qg7+ {[%clk 0:00:02.6]} 28... Rxg7 {[%clk 0:00:09.7]} 29. hxg7+ {[%clk
0:00:03.5]} 29... Kxg7 {[%clk 0:00:10.1]} 30. Rg1+ {[%clk 0:00:04.4]} 30... Kf8
{[%clk 0:00:08.7]} 31. Rdg2 {[%clk 0:00:05.3]} 31... Ke7 {[%clk 0:00:07]} 32.
Kd2 {[%clk 0:00:05.3]} 32... Nc4+ {[%clk 0:00:06.6]} 33. Ke1 {[%clk 0:00:04.1]}
33... d2+ {[%clk 0:00:06.7]} 34. Kf2 {[%clk 0:00:03.6]} 34... d1=Q {[%clk
0:00:06.4]} 35. Kg3 {[%clk 0:00:04]} 35... Q1d3+ {[%clk 0:00:04.8]} 36. Kh4
{[%clk 0:00:03.5]} 36... Q8d4 {[%clk 0:00:04.6]} 37. Rg3 {[%clk 0:00:04.4]}
37... Qxf4+ {[%clk 0:00:04.5]} 38. Rg4 {[%clk 0:00:03.6]} 38... Qxh2+ {[%clk
0:00:04.7]} 39. Kg5 {[%clk 0:00:02.3]} 39... Qe3+ {[%clk 0:00:04.7]} 0-1

[Event "Early-Titled-Tuesday-Blitz-January-16-2024"]
[Site "Chess.com"]
[Date "2024.01.16"]
[Round "11"]
[White "Kirill_Klukin"]
[Black "GothamChess"]
[Result "0-1"]
[WhiteElo "2858"]
[BlackElo "2750"]
[TimeControl "180+1"]
[EndTime "10:09:49 PST"]
[Termination "GothamChess won by checkmate"]

1. f4 {[%clk 0:03:00.9]} 1... b6 {[%clk 0:02:50.9]} 2. Nf3 {[%clk 0:02:56.6]}
2... Bb7 {[%clk 0:02:51.8]} 3. e3 {[%clk 0:02:57.1]} 3... e6 {[%clk 0:02:52.3]}
4. b3 {[%clk 0:02:53]} 4... Nf6 {[%clk 0:02:46.2]} 5. Bb2 {[%clk 0:02:53.2]}
5... c5 {[%clk 0:02:44.4]} 6. c4 {[%clk 0:02:48.8]} 6... d5 {[%clk 0:02:43.6]}
7. d4 {[%clk 0:02:45.2]} 7... cxd4 {[%clk 0:02:41.2]} 8. Nxd4 {[%clk 0:02:35.1]}
8... Ne4 {[%clk 0:02:34.6]} 9. Nc3 {[%clk 0:01:47.3]} 9... Bb4 {[%clk
0:02:19.9]} 10. Ne2 {[%clk 0:01:31.6]} 10... Nc6 {[%clk 0:02:06.3]} 11. a3
{[%clk 0:01:27.1]} 11... Bxc3+ {[%clk 0:01:50.4]} 12. Bxc3 {[%clk 0:01:23.4]}
12... Nxc3 {[%clk 0:01:46.3]} 13. Nxc3 {[%clk 0:01:22.4]} 13... Qf6 {[%clk
0:01:33.9]} 14. Rc1 {[%clk 0:01:17]} 14... d4 {[%clk 0:01:02.9]} 15. Ne4 {[%clk
0:01:11.9]} 15... Qe7 {[%clk 0:01:03.1]} 16. b4 {[%clk 0:00:24.8]} 16... Rd8
{[%clk 0:00:47.6]} 17. c5 {[%clk 0:00:21.7]} 17... bxc5 {[%clk 0:00:27.4]} 18.
bxc5 {[%clk 0:00:21.7]} 18... O-O {[%clk 0:00:22.9]} 19. Nd6 {[%clk 0:00:20.6]}
19... e5 {[%clk 0:00:18.9]} 20. Bd3 {[%clk 0:00:14.6]} 20... exf4 {[%clk
0:00:14.6]} 21. e4 {[%clk 0:00:14.9]} 21... Qh4+ {[%clk 0:00:11.3]} 22. Kf1
{[%clk 0:00:13.8]} 22... Ba8 {[%clk 0:00:07.7]} 23. Qe1 {[%clk 0:00:13.9]} 23...
Qg5 {[%clk 0:00:04.4]} 24. h4 {[%clk 0:00:13.1]} 24... Qf6 {[%clk 0:00:03.9]}
25. Qf2 {[%clk 0:00:03.4]} 25... Ne5 {[%clk 0:00:02.6]} 26. Be2 {[%clk
0:00:03.6]} 26... d3 {[%clk 0:00:02.4]} 27. Bf3 {[%clk 0:00:04.1]} 27... Bc6
{[%clk 0:00:02]} 28. Rd1 {[%clk 0:00:04.2]} 28... Rxd6 {[%clk 0:00:02.3]} 29.
cxd6 {[%clk 0:00:04.3]} 29... Qxd6 {[%clk 0:00:03.1]} 30. Kg1 {[%clk 0:00:04.2]}
30... Rd8 {[%clk 0:00:03.4]} 31. Kh2 {[%clk 0:00:04.7]} 31... h5 {[%clk
0:00:02.5]} 32. Rd2 {[%clk 0:00:01.8]} 32... Nc4 {[%clk 0:00:02.4]} 33. Rhd1
{[%clk 0:00:01.5]} 33... Nxd2 {[%clk 0:00:02.5]} 34. Rxd2 {[%clk 0:00:02.4]}
34... Qxa3 {[%clk 0:00:02.4]} 35. Kg1 {[%clk 0:00:03]} 35... Qc1+ {[%clk
0:00:02.5]} 36. Kh2 {[%clk 0:00:03.4]} 36... Qc3 {[%clk 0:00:03.2]} 37. Rd1
{[%clk 0:00:03.2]} 37... a5 {[%clk 0:00:03.7]} 38. e5 {[%clk 0:00:03.7]} 38...
Bxf3 {[%clk 0:00:02.9]} 39. Qxf3 {[%clk 0:00:04.6]} 39... Qxe5 {[%clk
0:00:03.1]} 40. Kh1 {[%clk 0:00:03]} 40... Qe3 {[%clk 0:00:03.2]} 41. Qb7 {[%clk
0:00:01.9]} 41... d2 {[%clk 0:00:03.5]} 42. Qb1 {[%clk 0:00:02.7]} 42... Re8
{[%clk 0:00:03.3]} 43. Kh2 {[%clk 0:00:02.4]} 43... f3 {[%clk 0:00:03.7]} 44.
gxf3 {[%clk 0:00:02.4]} 44... Qf2+ {[%clk 0:00:04.4]} 45. Kh3 {[%clk 0:00:02.4]}
45... Qxf3+ {[%clk 0:00:04.9]} 46. Kh2 {[%clk 0:00:02.8]} 46... Re2+ {[%clk
0:00:05.6]} 47. Kg1 {[%clk 0:00:03.3]} 47... Qg2# {[%clk 0:00:06.5]} 0-1

[Event "Early-Titled-Tuesday-Blitz-January-16-2024"]
[Site "Chess.com"]
[Date "2024.01.16"]
[Round "11"]
[White "TrahtarBelarus"]
[Black "Alexchess1984"]
[Result "0-1"]
[WhiteElo "2871"]
[BlackElo "2697"]
[TimeControl "180+1"]
[EndTime "10:09:51 PST"]
[Termination "Alexchess1984 won by resignation"]

1. a3 {[%clk 0:03:00.9]} 1... d5 {[%clk 0:02:58.7]} 2. Nf3 {[%clk 0:02:59.7]}
2... Nf6 {[%clk 0:02:57.1]} 3. g3 {[%clk 0:02:57]} 3... g6 {[%clk 0:02:56.1]} 4.
Bg2 {[%clk 0:02:57.3]} 4... Bg7 {[%clk 0:02:56.6]} 5. O-O {[%clk 0:02:58]} 5...
O-O {[%clk 0:02:57.2]} 6. d4 {[%clk 0:02:58.7]} 6... c6 {[%clk 0:02:54.2]} 7. c3
{[%clk 0:02:41.6]} 7... Nbd7 {[%clk 0:02:49]} 8. Bf4 {[%clk 0:02:25.5]} 8... Nh5
{[%clk 0:02:44.2]} 9. e3 {[%clk 0:02:18.5]} 9... Nxf4 {[%clk 0:02:40.2]} 10.
exf4 {[%clk 0:02:18.8]} 10... c5 {[%clk 0:02:39.3]} 11. Ne5 {[%clk 0:02:07.7]}
11... cxd4 {[%clk 0:02:36.5]} 12. cxd4 {[%clk 0:02:08.1]} 12... e6 {[%clk
0:02:32.5]} 13. Nc3 {[%clk 0:02:08.3]} 13... Nxe5 {[%clk 0:02:30.1]} 14. dxe5
{[%clk 0:02:04.7]} 14... Bd7 {[%clk 0:02:29.8]} 15. Qd2 {[%clk 0:02:00.5]} 15...
Qb6 {[%clk 0:02:25.7]} 16. Rfe1 {[%clk 0:01:44.3]} 16... Rfc8 {[%clk 0:02:22.2]}
17. Rac1 {[%clk 0:01:24.1]} 17... Rc5 {[%clk 0:01:48.3]} 18. Ne2 {[%clk
0:01:13.9]} 18... Bf8 {[%clk 0:01:43.9]} 19. Rxc5 {[%clk 0:00:26.6]} 19... Bxc5
{[%clk 0:01:33.5]} 20. Nc1 {[%clk 0:00:26.8]} 20... Rc8 {[%clk 0:01:28.8]} 21.
Nd3 {[%clk 0:00:26.4]} 21... Bf8 {[%clk 0:01:27.5]} 22. Rc1 {[%clk 0:00:23.7]}
22... Rxc1+ {[%clk 0:01:26.3]} 23. Qxc1 {[%clk 0:00:24.6]} 23... Bb5 {[%clk
0:01:24.7]} 24. Bf1 {[%clk 0:00:25]} 24... Qc6 {[%clk 0:01:24.8]} 25. Qxc6
{[%clk 0:00:22.3]} 25... bxc6 {[%clk 0:01:24.9]} 26. b4 {[%clk 0:00:19.4]} 26...
Be7 {[%clk 0:01:15.2]} 27. Nc1 {[%clk 0:00:14.3]} 27... Bxf1 {[%clk 0:01:14.9]}
28. Kxf1 {[%clk 0:00:14.5]} 28... c5 {[%clk 0:01:15.8]} 29. bxc5 {[%clk
0:00:09.6]} 29... Bxc5 {[%clk 0:01:16.7]} 30. a4 {[%clk 0:00:10.4]} 30... Kf8
{[%clk 0:01:16.5]} 31. Nd3 {[%clk 0:00:10.9]} 31... Bb6 {[%clk 0:01:14.8]} 32.
Ke2 {[%clk 0:00:10.8]} 32... Ke7 {[%clk 0:01:14.9]} 33. Kd2 {[%clk 0:00:11.4]}
33... Kd7 {[%clk 0:01:15]} 34. Kc3 {[%clk 0:00:12.1]} 34... Kc7 {[%clk
0:01:15.9]} 35. Kb4 {[%clk 0:00:12.5]} 35... Kc6 {[%clk 0:01:15]} 36. h4 {[%clk
0:00:08.3]} 36... Bd8 {[%clk 0:01:10.2]} 37. Kb3 {[%clk 0:00:07.4]} 37... Be7
{[%clk 0:01:08.7]} 38. Kc3 {[%clk 0:00:07.7]} 38... Kb6 {[%clk 0:01:05.8]} 39.
Kb3 {[%clk 0:00:07.6]} 39... Ka5 {[%clk 0:01:04.9]} 40. Nc1 {[%clk 0:00:04.6]}
40... Bc5 {[%clk 0:01:00.9]} 41. Nd3 {[%clk 0:00:05.5]} 41... Bd4 {[%clk
0:01:01.2]} 42. Ka3 {[%clk 0:00:06.1]} 42... Kb6 {[%clk 0:00:56.2]} 43. Kb4
{[%clk 0:00:06.2]} 43... Kc6 {[%clk 0:00:55.1]} 44. Kb3 {[%clk 0:00:06.6]} 44...
Bb6 {[%clk 0:00:50.5]} 45. Kb4 {[%clk 0:00:07.2]} 45... Bd8 {[%clk 0:00:50.2]}
46. Kb3 {[%clk 0:00:07.5]} 46... f6 {[%clk 0:00:50.1]} 47. exf6 {[%clk
0:00:06.1]} 47... Bxf6 {[%clk 0:00:51]} 48. Kb4 {[%clk 0:00:06.5]} 48... Bd4
{[%clk 0:00:48]} 49. Kb3 {[%clk 0:00:06.7]} 49... a5 {[%clk 0:00:47.3]} 50. Ka3
{[%clk 0:00:05.4]} 50... Kd6 {[%clk 0:00:47.2]} 51. Kb3 {[%clk 0:00:05.8]} 51...
e5 {[%clk 0:00:47.5]} 52. fxe5+ {[%clk 0:00:04.7]} 52... Bxe5 {[%clk 0:00:48.4]}
53. Nxe5 {[%clk 0:00:05.1]} 53... Kxe5 {[%clk 0:00:49.3]} 54. Kc3 {[%clk
0:00:05.6]} 54... Ke4 {[%clk 0:00:49.2]} 55. g4 {[%clk 0:00:03.8]} 55... Kf4
{[%clk 0:00:43.8]} 56. Kd4 {[%clk 0:00:04.7]} 56... Kxg4 {[%clk 0:00:43.8]} 57.
Kxd5 {[%clk 0:00:05]} 57... Kxh4 {[%clk 0:00:44.4]} 58. Kc5 {[%clk 0:00:05.3]}
58... Kg4 {[%clk 0:00:44.9]} 59. Kb5 {[%clk 0:00:06]} 59... h5 {[%clk
0:00:45.6]} 60. Kxa5 {[%clk 0:00:06.6]} 60... h4 {[%clk 0:00:46.5]} 61. f3+
{[%clk 0:00:07.4]} 61... Kg3 {[%clk 0:00:44.9]} 62. Kb6 {[%clk 0:00:07.1]} 62...
h3 {[%clk 0:00:45.8]} 63. a5 {[%clk 0:00:07.8]} 63... h2 {[%clk 0:00:46.7]} 64.
a6 {[%clk 0:00:08.7]} 64... h1=Q {[%clk 0:00:47.6]} 65. a7 {[%clk 0:00:09.4]}
65... Qb1+ {[%clk 0:00:48.2]} 0-1

[Event "Early-Titled-Tuesday-Blitz-January-16-2024"]
[Site "Chess.com"]
[Date "2024.01.16"]
[Round "11"]
[White "DDTerziev04"]
[Black "finec2"]
[Result "1-0"]
[WhiteElo "2189"]
[BlackElo "2292"]
[TimeControl "180+1"]
[EndTime "10:09:51 PST"]
[Termination "DDTerziev04 won on time"]

1. e4 {[%clk 0:03:00.9]} 1... c5 {[%clk 0:02:59]} 2. Nf3 {[%clk 0:02:58.6]} 2...
e6 {[%clk 0:02:58.8]} 3. d4 {[%clk 0:02:58]} 3... cxd4 {[%clk 0:02:59.7]} 4.
Qxd4 {[%clk 0:02:58.2]} 4... Nc6 {[%clk 0:02:59.6]} 5. Qe3 {[%clk 0:02:58]} 5...
d6 {[%clk 0:02:58]} 6. c4 {[%clk 0:02:57.5]} 6... Nf6 {[%clk 0:02:57.2]} 7. Nc3
{[%clk 0:02:57.6]} 7... Be7 {[%clk 0:02:57.2]} 8. Be2 {[%clk 0:02:56.3]} 8... a6
{[%clk 0:02:57.2]} 9. h3 {[%clk 0:02:56]} 9... O-O {[%clk 0:02:56.9]} 10. O-O
{[%clk 0:02:56]} 10... b6 {[%clk 0:02:56]} 11. Rd1 {[%clk 0:02:56]} 11... Qc7
{[%clk 0:02:55.3]} 12. b3 {[%clk 0:02:56.1]} 12... Bb7 {[%clk 0:02:55.1]} 13.
Bb2 {[%clk 0:02:56.4]} 13... Rfe8 {[%clk 0:02:33.6]} 14. Rac1 {[%clk 0:02:56.4]}
14... Ne5 {[%clk 0:02:33.5]} 15. Na4 {[%clk 0:02:42.3]} 15... Ned7 {[%clk
0:02:30.2]} 16. Nc3 {[%clk 0:02:38.1]} 16... Rad8 {[%clk 0:02:26.7]} 17. Nd4
{[%clk 0:02:33.8]} 17... Qb8 {[%clk 0:02:21.9]} 18. Kh1 {[%clk 0:02:19.7]} 18...
Bf8 {[%clk 0:02:20]} 19. f4 {[%clk 0:02:17.6]} 19... Nc5 {[%clk 0:01:52.5]} 20.
Bf3 {[%clk 0:02:14.9]} 20... d5 {[%clk 0:01:51]} 21. e5 {[%clk 0:02:07.5]} 21...
Nfe4 {[%clk 0:01:49.2]} 22. Bxe4 {[%clk 0:01:50.6]} 22... Nxe4 {[%clk
0:01:50.1]} 23. Nxe4 {[%clk 0:01:48.9]} 23... dxe4 {[%clk 0:01:48.1]} 24. Ne2
{[%clk 0:01:31.4]} 24... Bc5 {[%clk 0:01:47.2]} 25. Bd4 {[%clk 0:01:30.6]} 25...
Qc7 {[%clk 0:01:40.9]} 26. Bxc5 {[%clk 0:01:29.6]} 26... bxc5 {[%clk 0:01:41.8]}
27. Nc3 {[%clk 0:01:26.1]} 27... Rd4 {[%clk 0:01:32.2]} 28. Rxd4 {[%clk
0:01:21.1]} 28... cxd4 {[%clk 0:01:33.1]} 29. Qxd4 {[%clk 0:01:14.3]} 29... Rd8
{[%clk 0:01:33.6]} 30. Qe3 {[%clk 0:01:14.8]} 30... Rd3 {[%clk 0:01:32.3]} 31.
Qe2 {[%clk 0:01:13.4]} 31... Qc6 {[%clk 0:01:24.4]} 32. Nd1 {[%clk 0:01:06.8]}
32... Qd7 {[%clk 0:00:55.4]} 33. Ne3 {[%clk 0:01:02.8]} 33... Qd4 {[%clk
0:00:45.9]} 34. Re1 {[%clk 0:00:47.6]} 34... h6 {[%clk 0:00:35.4]} 35. f5 {[%clk
0:00:38.9]} 35... Rd2 {[%clk 0:00:27]} 36. Qg4 {[%clk 0:00:36.1]} 36... Qxe5
{[%clk 0:00:16.1]} 37. fxe6 {[%clk 0:00:29.8]} 37... fxe6 {[%clk 0:00:14.9]} 38.
Qh4 {[%clk 0:00:23.7]} 38... Rxa2 {[%clk 0:00:10.4]} 39. Qd8+ {[%clk 0:00:22.6]}
39... Kh7 {[%clk 0:00:10.2]} 40. Qe7 {[%clk 0:00:21.9]} 40... Bc6 {[%clk
0:00:08.2]} 41. Qb4 {[%clk 0:00:21.1]} 41... Rb2 {[%clk 0:00:05.9]} 42. c5
{[%clk 0:00:20.6]} 42... a5 {[%clk 0:00:02.7]} 43. Qc4 {[%clk 0:00:20.3]} 43...
Bd5 {[%clk 0:00:01.4]} 44. Nxd5 {[%clk 0:00:16.3]} 44... Qxd5 {[%clk 0:00:02.3]}
45. Qxe4+ {[%clk 0:00:11.3]} 45... Qxe4 {[%clk 0:00:02]} 46. Rxe4 {[%clk
0:00:12.2]} 46... Rxb3 {[%clk 0:00:01.6]} 47. Rxe6 {[%clk 0:00:12.3]} 47... Rc3
{[%clk 0:00:02.1]} 48. c6 {[%clk 0:00:08.4]} 48... a4 {[%clk 0:00:01.9]} 49. Re4
{[%clk 0:00:07.7]} 1-0

[Event "Early-Titled-Tuesday-Blitz-January-16-2024"]
[Site "Chess.com"]
[Date "2024.01.16"]
[Round "11"]
[White "NowInChess"]
[Black "ZuraTqebuchava"]
[Result "1-0"]
[WhiteElo "2294"]
[BlackElo "2143"]
[TimeControl "180+1"]
[EndTime "10:09:51 PST"]
[Termination "NowInChess won on time"]

1. e4 {[%clk 0:03:00.9]} 1... e5 {[%clk 0:02:58.3]} 2. Nf3 {[%clk 0:02:59.9]}
2... Nc6 {[%clk 0:02:57.4]} 3. d4 {[%clk 0:03:00.1]} 3... d6 {[%clk 0:02:53.5]}
4. dxe5 {[%clk 0:02:54.6]} 4... Nxe5 {[%clk 0:02:50.6]} 5. Nxe5 {[%clk
0:02:53.9]} 5... dxe5 {[%clk 0:02:51.5]} 6. Qxd8+ {[%clk 0:02:54]} 6... Kxd8
{[%clk 0:02:52]} 7. Bc4 {[%clk 0:02:54.3]} 7... Be6 {[%clk 0:02:51.3]} 8. Bxe6
{[%clk 0:02:54.4]} 8... fxe6 {[%clk 0:02:51.1]} 9. Be3 {[%clk 0:02:54.9]} 9...
Bd6 {[%clk 0:02:50.5]} 10. Nd2 {[%clk 0:02:52.2]} 10... Nf6 {[%clk 0:02:49.7]}
11. f3 {[%clk 0:02:51.9]} 11... Ke7 {[%clk 0:02:49.5]} 12. Ke2 {[%clk
0:02:49.2]} 12... a6 {[%clk 0:02:46.4]} 13. a4 {[%clk 0:02:48]} 13... b5 {[%clk
0:02:41.4]} 14. axb5 {[%clk 0:02:39.1]} 14... axb5 {[%clk 0:02:40.8]} 15. c3
{[%clk 0:02:35.3]} 15... Nd7 {[%clk 0:02:24.4]} 16. b4 {[%clk 0:02:22.6]} 16...
Nb6 {[%clk 0:02:19.8]} 17. Bxb6 {[%clk 0:02:21.6]} 17... cxb6 {[%clk 0:02:19.2]}
18. Nb3 {[%clk 0:02:09.6]} 18... Ra4 {[%clk 0:01:56.4]} 19. Kd2 {[%clk
0:01:57.4]} 19... Rha8 {[%clk 0:01:52.8]} 20. Kc2 {[%clk 0:01:57]} 20... Ra2+
{[%clk 0:01:47.9]} 21. Kd3 {[%clk 0:01:54.3]} 21... R8a3 {[%clk 0:01:39.7]} 22.
Rxa2 {[%clk 0:01:22.9]} 22... Rxa2 {[%clk 0:01:38.6]} 23. Nd2 {[%clk 0:01:10]}
23... Kf7 {[%clk 0:01:23]} 24. Rc1 {[%clk 0:00:48.9]} 24... Be7 {[%clk
0:01:15.5]} 25. Rc2 {[%clk 0:00:48.9]} 25... Ra1 {[%clk 0:01:11.2]} 26. Ke2
{[%clk 0:00:45.5]} 26... Bh4 {[%clk 0:00:54.1]} 27. g3 {[%clk 0:00:42.3]} 27...
Be7 {[%clk 0:00:49]} 28. c4 {[%clk 0:00:35.6]} 28... Rh1 {[%clk 0:00:42.9]} 29.
Nf1 {[%clk 0:00:28.4]} 29... Bxb4 {[%clk 0:00:32.9]} 30. cxb5 {[%clk 0:00:28.2]}
30... Ke7 {[%clk 0:00:19.8]} 31. Rc7+ {[%clk 0:00:21.6]} 31... Kd6 {[%clk
0:00:18.1]} 32. Rc6+ {[%clk 0:00:14.6]} 32... Kd7 {[%clk 0:00:15.4]} 33. Rxb6
{[%clk 0:00:15.1]} 33... Rg1 {[%clk 0:00:13.6]} 34. Rc6 {[%clk 0:00:11]} 34...
Rg2+ {[%clk 0:00:12.6]} 35. Kd3 {[%clk 0:00:10.9]} 35... Rf2 {[%clk 0:00:10.7]}
36. Ne3 {[%clk 0:00:09.1]} 36... Rxf3 {[%clk 0:00:10.1]} 37. Ke2 {[%clk
0:00:08.7]} 37... Rf8 {[%clk 0:00:08.6]} 38. Nc4 {[%clk 0:00:08.4]} 38... Rb8
{[%clk 0:00:05.3]} 39. Nxe5+ {[%clk 0:00:07.7]} 39... Ke7 {[%clk 0:00:04.1]} 40.
b6 {[%clk 0:00:07.7]} 40... Bd6 {[%clk 0:00:01.4]} 41. Nc4 {[%clk 0:00:06]} 1-0

[Event "Early-Titled-Tuesday-Blitz-January-16-2024"]
[Site "Chess.com"]
[Date "2024.01.16"]
[Round "11"]
[White "sokidze"]
[Black "artin10862"]
[Result "1-0"]
[WhiteElo "2838"]
[BlackElo "2919"]
[TimeControl "180+1"]
[EndTime "10:09:53 PST"]
[Termination "sokidze won on time"]

1. d4 {[%clk 0:02:59.5]} 1... Nf6 {[%clk 0:02:58.2]} 2. c4 {[%clk 0:02:59.3]}
2... e6 {[%clk 0:02:53.3]} 3. Nf3 {[%clk 0:02:58.9]} 3... b6 {[%clk 0:02:50.3]}
4. g3 {[%clk 0:02:59]} 4... Ba6 {[%clk 0:02:49.5]} 5. Qa4 {[%clk 0:02:59.3]}
5... Bb7 {[%clk 0:02:45]} 6. Bg2 {[%clk 0:02:59.5]} 6... Be7 {[%clk 0:02:42]} 7.
O-O {[%clk 0:02:59.4]} 7... O-O {[%clk 0:02:42.3]} 8. Nc3 {[%clk 0:02:59.8]}
8... Ne4 {[%clk 0:02:42.2]} 9. Bd2 {[%clk 0:03:00.4]} 9... Qc8 {[%clk
0:02:38.7]} 10. Rfd1 {[%clk 0:02:49.7]} 10... a6 {[%clk 0:02:38.1]} 11. d5
{[%clk 0:02:29.1]} 11... Nxd2 {[%clk 0:02:30.6]} 12. Nxd2 {[%clk 0:02:28.3]}
12... e5 {[%clk 0:02:27.2]} 13. Bh3 {[%clk 0:02:05.9]} 13... Qd8 {[%clk
0:02:15.5]} 14. Qc2 {[%clk 0:01:57]} 14... d6 {[%clk 0:02:12.6]} 15. b4 {[%clk
0:01:56.2]} 15... Nd7 {[%clk 0:02:10.4]} 16. Nb3 {[%clk 0:01:50.6]} 16... g6
{[%clk 0:02:08.7]} 17. e4 {[%clk 0:01:49.5]} 17... h5 {[%clk 0:01:36.3]} 18.
Rab1 {[%clk 0:01:44.1]} 18... Rb8 {[%clk 0:01:30.3]} 19. a4 {[%clk 0:01:39.8]}
19... Nf6 {[%clk 0:01:14.3]} 20. f3 {[%clk 0:01:19.7]} 20... Nh7 {[%clk
0:01:10.2]} 21. a5 {[%clk 0:01:13.9]} 21... Ng5 {[%clk 0:01:08.7]} 22. Bg2
{[%clk 0:01:14.1]} 22... Bc8 {[%clk 0:00:56.6]} 23. axb6 {[%clk 0:00:57.9]}
23... Rxb6 {[%clk 0:00:51.2]} 24. Na5 {[%clk 0:00:52.1]} 24... Bd7 {[%clk
0:00:50.9]} 25. Na4 {[%clk 0:00:40.3]} 25... Rb8 {[%clk 0:00:46]} 26. c5 {[%clk
0:00:34.3]} 26... Bxa4 {[%clk 0:00:36.2]} 27. Qxa4 {[%clk 0:00:33.3]} 27... dxc5
{[%clk 0:00:36.6]} 28. Nc6 {[%clk 0:00:30.3]} 28... Qd6 {[%clk 0:00:36.2]} 29.
Nxb8 {[%clk 0:00:28.7]} 29... Rxb8 {[%clk 0:00:35.1]} 30. h4 {[%clk 0:00:26.9]}
30... Nh7 {[%clk 0:00:30.9]} 31. bxc5 {[%clk 0:00:27.3]} 31... Qxc5+ {[%clk
0:00:31]} 32. Kh2 {[%clk 0:00:28]} 32... Rxb1 {[%clk 0:00:26.6]} 33. Rxb1 {[%clk
0:00:26]} 33... g5 {[%clk 0:00:23.3]} 34. Qe8+ {[%clk 0:00:17.7]} 34... Kg7
{[%clk 0:00:20]} 35. Rb8 {[%clk 0:00:17.6]} 35... gxh4 {[%clk 0:00:08]} 36. Qg8+
{[%clk 0:00:12.4]} 36... Kh6 {[%clk 0:00:08.1]} 37. Qxf7 {[%clk 0:00:07.4]}
37... hxg3+ {[%clk 0:00:08.4]} 38. Kxg3 {[%clk 0:00:07]} 38... Bh4+ {[%clk
0:00:05.1]} 39. Kh2 {[%clk 0:00:05.3]} 39... Qd6 {[%clk 0:00:01.4]} 40. Rg8
{[%clk 0:00:04.5]} 1-0